{"text_format":"1","workbook":"xlsx","n_sheets":2,"sheets":["Conversion","Table"],"not_rendered":{"charts":0,"images":0,"macros":1,"external_links":0,"defined_names":38,"comments":0,"pivot_tables":0},"unopened":[],"bounds":{"document_bytes":16777216,"sheet_cells":100000,"rows_first":2000,"rows_last":500,"rows_between":2000,"halvings":0,"cell_chars":16384,"cell_head_chars":4096},"cells_cut":0,"cells_raw":0,"read":"whole","date_system":"1900"}

{"sheet":"Conversion","index":0,"n_rows":106,"n_cols":22,"rows_kept":106,"cut":false,"hidden":false,"merged":[[19,4,19,5],[16,2,17,3],[16,4,17,5],[18,4,18,5],[0,3,0,4],[15,2,15,5],[19,2,19,3],[1,1,2,6],[7,2,9,3],[7,4,9,5],[10,2,12,3],[10,4,12,5],[4,2,4,3],[4,4,5,5],[3,4,3,5],[3,2,3,3],[6,2,6,5],[18,2,18,3]]}
[]
[null,"Convertion Table   © Rocketwaveuk"]
[null,null,null,null,null,null,null,null,null,null,null,null,null,null,null,null,null,null,null,null,null,{"$f":"Deci/100","v":0}]
[null,null,null,null,"Unlocked",null,null,null,null,null,null,null,null,null,null,null,null,null,null,null,null,0]
[null,null,"   Th       H         T         U        •",null,"Use The Buttons To Set Or Adjust The Desired Value",null,null,null,null,null,null,null,null,null,null,null,null,null,null,null,null,{"$f":"Thou*1000","v":0}]
[null,null,null,null,null,null,null,null,null,null,"Lookup","Value","Con_Rate","New Scale",null,null,null,null,null,null,null,0]
[null,null,null,null,null,null,null,null,null,null,1,"Select Here",0,"Converted To",null,null,null,null,null,null,null,0]
[null,null,{"$f":"V10","v":1},null,"Exchange Rate",null,null,null,null,null,2,"<<<        Length       >>>",null,null,null,null,null,null,null,null,null,1]
[null,null,null,null,null,null,null,null,null,null,3,"cm > Inches",{"$f":"Val_Total*0.3937","v":0.39369999999999999},"Inches",null,null,null,null,null,null,null,0]
[null,null,null,null,null,null,null,null,null,null,4,"Metres > Feet",{"$f":"Val_Total*3.2808","v":3.2808000000000002},"Feet",null,null,null,null,null,null,null,{"$f":"True_Thou+Hund+Tens+Units+(Deci/100)","v":1}]
[null,null,{"$f":"ROUND(VLOOKUP(E8,L6:N70,2,0),E20)","v":62.386000000000003},null,{"$f":"VLOOKUP(E8,L6:N70,3,0)","v":"Philippine Peso"},null,null,null,null,null,5,"Metres > Yards",{"$f":"Val_Total/0.9144","v":1.0936132983377078},"Yards",null,null,null,null,null,null,null,{"$f":"Conv_Answer","v":62.386000000000003}]
[null,null,null,null,null,null,null,null,null,null,6,"km > miles",{"$f":"Val_Total/1.609","v":0.62150403977625857},"Miles",null,null,null,null,null,null,null,{"$f":"QUOTIENT(Ans_Total,1000)*1000","v":0}]
[null,null,null,null,null,null,null,null,null,null,7,"Inches > cm",{"$f":"Val_Total*2.54","v":2.54},"Centimetres",null,null,null,null,null,null,null,{"$f":"QUOTIENT(Ans_Total-Ans_Thou,100)*100","v":0}]
[null,null,1,null,null,null,null,null,null,null,8,"Inches > Feet",{"$f":"Val_Total/12","v":8.3333333333333329E-2},"Feet",null,null,null,null,null,null,null,{"$f":"QUOTIENT(Ans_Total-Ans_Thou-Ans_Hund,10)*10","v":60}]
[null,null,null,null,null,null,null,null,null,null,9,"Feet > Yards",{"$f":"Val_Total*0.3333","v":0.33329999999999999},"Yards",null,null,null,null,null,null,null,{"$f":"QUOTIENT(Ans_Total-Ans_Thou-Ans_Hund-Ans_Tens,1)","v":2}]
[null,null,"Below You Can Set Exchange Currency To The £ ",null,null,null,null,null,null,null,10,"Feet > Metre",{"$f":"Val_Total*0.3048","v":0.30480000000000002},"Metres",null,null,null,null,null,null,null,{"$f":"Ans_Total-Ans_Thou-Ans_Hund-Ans_Tens-Ans_Units","v":0.38600000000000279}]
[null,null,"Philippine Peso",null,{"$f":"VLOOKUP(C17,Table!A2:B54,2,0)","v":62.385995999999999},null,null,null,null,null,11,"Yards > Metres",{"$f":"Val_Total*0.9144","v":0.91439999999999999},"Metres",null,null,null,null,null,null,null,{"$f":"Ans_Thou/1000","v":0}]
[null,null,null,null,null,null,null,null,null,null,12,"Yards > Feet",{"$f":"Val_Total*3","v":3},"Feet"]
[null,null,"Set The Value For V.A.T %",null,"Set Answer Decimal Value",null,null,null,null,null,13,"Yards > Miles",{"$f":"Val_Total/1760","v":5.6818181818181815E-4},"Miles"]
[null,null,0.2,null,3,null,null,null,null,null,14,"Chains > Yards",{"$f":"Val_Total*22","v":22},"Yards",null,null,null,null,null,null,null,5]
[null,null,null,null,null,null,null,null,null,null,15,"Furlong > Miles",{"$f":"Val_Total/8","v":0.125},"Miles",null,null,null,null,null,null,null,700]
[null,null,null,null,null,null,null,null,null,null,16,"Miles > Km",{"$f":"Val_Total*1.609","v":1.609},"Kilometres",null,null,null,null,null,null,null,50]
[null,null,null,null,null,null,null,null,null,null,17,"<<<     WEIGHTS     >>>",null,null,null,null,null,null,null,null,null,4]
[null,null,null,null,null,null,null,null,null,null,18,"Grams > Ounces",{"$f":"Val_Total*0.0353","v":3.5299999999999998E-2},"Ounces",null,null,null,null,null,null,null,0.93000000000029104]
[null,null,null,null,null,null,null,null,null,null,19,"Kilos > lbs",{"$f":"Val_Total*2.2046","v":2.2046000000000001},"Pounds",null,null,null,null,null,null,null,{"$f":"Swap_Deci*100","v":93.000000000029104}]
[null,null,null,null,null,null,null,null,null,null,20,"Kilos > Stones",{"$f":"Val_Total/6.3503","v":0.15747287529723006},"Stones"]
[null,null,null,null,null,null,null,null,null,null,21,"Ounces > Grams",{"$f":"Val_Total*28.35","v":28.35},"Grams"]
[null,null,null,null,null,null,null,null,null,null,22,"Ounces > Lbs",{"$f":"Val_Total/16","v":6.25E-2},"Pounds"]
[null,null,null,null,null,null,null,null,null,null,23,"Ibs > Ounces",{"$f":"Val_Total*16","v":16},"Ounces"]
[null,null,null,null,null,null,null,null,null,null,24,"lbs > Kilos",{"$f":"Val_Total*0.4536","v":0.4536},"Kilos"]
[null,null,null,null,null,null,null,null,null,null,25,"lbs > Stones",{"$f":"Val_Total/14","v":7.1428571428571425E-2},"Stones"]
[null,null,null,null,null,null,null,null,null,null,26,"Stones > Kilos",{"$f":"Val_Total*6.3503","v":6.3502999999999998},"Kilos"]
[null,null,null,null,null,null,null,null,null,null,27,"Stone > Cwt",{"$f":"Val_Total/8","v":0.125},"Cwt"]
[null,null,null,null,null,null,null,null,null,null,28,"Tons > Stones",{"$f":"(Val_Total*10)*8","v":80},"Stones"]
[null,null,null,null,null,null,null,null,null,null,29,"<<<       FLUIDS       >>>"]
[null,null,null,null,null,null,null,null,null,null,30,"m`ltrs > Fluid oz",{"$f":"((Val_Total/1000)/0.568)*20","v":3.5211267605633811E-2},"Fluid Oz"]
[null,null,null,null,null,null,null,null,null,null,31,"m'Litres > Pints",{"$f":"Val_Total/568","v":1.7605633802816902E-3},"Pints"]
[null,null,null,null,null,null,null,null,null,null,32,"Litres > Pints",{"$f":"Val_Total/0.568","v":1.7605633802816902},"Pints"]
[null,null,null,null,null,null,null,null,null,null,33,"Litres > Gallons",{"$f":"Val_Total/4.546","v":0.21997360316761988},"Gallons"]
[null,null,null,null,null,null,null,null,null,null,34,"Fluid oz > m`Ltrs",{"$f":"(Val_Total/20)*568","v":28.400000000000002},"m`Litres"]
[null,null,null,null,null,null,null,null,null,null,35,"Pints > m`Litres",{"$f":"Val_Total*568","v":568},"m`Litres"]
[null,null,null,null,null,null,null,null,null,null,36,"Pints > Litres",{"$f":"Val_Total*0.568","v":0.56799999999999995},"Litres"]
[null,null,null,null,null,null,null,null,null,null,37,"Pints > Fluid Oz",{"$f":"Val_Total*20","v":20},"Fluid Ozs"]
[null,null,null,null,null,null,null,null,null,null,38,"Pints > Gallons",{"$f":"Val_Total/8","v":0.125},"Gallons"]
[null,null,null,null,null,null,null,null,null,null,39,"Gallons > Litres",{"$f":"Val_Total*4.546","v":4.5460000000000003},"Litres"]
[null,null,null,null,null,null,null,null,null,null,40,"US Tablespoon/ml",{"$f":"Val_Total*14.7867648","v":14.7867648},"ml"]
[null,null,null,null,null,null,null,null,null,null,41,"UK Tablespoon/ml",{"$f":"Val_Total*17.7582","v":17.758199999999999},"ml"]
[null,null,null,null,null,null,null,null,null,null,42,"Teaspoon/ml",{"$f":"Val_Total*5.91939","v":5.9193899999999999},"ml"]
[null,null,null,null,null,null,null,null,null,null,43,"Choose",0,"Select Above"]
[null,null,null,null,null,null,null,null,null,null,44,"<<< TEMPERATURE >>>"]
[null,null,null,null,null,null,null,null,null,null,45,"Deg F > Deg C",{"$f":"(Val_Total-32)/1.8","v":-17.222222222222221},"Centigrade"]
[null,null,null,null,null,null,null,null,null,null,46,"Deg C > Deg F",{"$f":"(Val_Total*1.8)+32","v":33.799999999999997},"Fahrenheit"]
[null,null,null,null,null,null,null,null,null,null,47,"<<<       POWER       >>>"]
[null,null,null,null,null,null,null,null,null,null,48,"Peek > Rms",{"$f":"Val_Total*0.707","v":0.70699999999999996},"Root Mean Sq"]
[null,null,null,null,null,null,null,null,null,null,49,"Rms > Peek",{"$f":"(Val_Total/70.7)*100","v":1.4144271570014144},"Peek Value"]
[null,null,null,null,null,null,null,null,null,null,50,"<<<    CURRENCY    >>>"]
[null,null,null,null,null,null,null,null,null,null,51,"Include      V.A.T",{"$f":"(Val_Total*Vat_Value)+Val_Total","v":1.2},"Inc   V.A.T"]
[null,null,null,null,null,null,null,null,null,null,52,"Minus  V.A.T",{"$f":"(Val_Total/((Vat_Value*100)+100))*100","v":0.83333333333333337},"Exc   V.A.T"]
[null,null,null,null,null,null,null,null,null,null,53,"Exchange Rate",{"$f":"Val_Total*E17","v":62.385995999999999},{"$f":"C17","v":"Philippine Peso"}]
[null,null,null,null,null,null,null,null,null,null,54,"<<<      Formula      >>>"]
[null,null,null,null,null,null,null,null,null,null,55,"Squared Num",{"$f":"Val_Total^2","v":1},"Squared"]
[null,null,null,null,null,null,null,null,null,null,56,"Cubed Num",{"$f":"Val_Total^3","v":1},"Cubed"]
[null,null,null,null,null,null,null,null,null,null,57,"Square Root Num",{"$f":"SQRT(Val_Total)","v":1},"Square Root"]
[null,null,null,null,null,null,null,null,null,null,58,"Cube Root Num",{"$f":"Val_Total^(1/3)","v":1},"Cube Root"]
[null,null,null,null,null,null,null,null,null,null,59,"Radius/Circumference",{"$f":"2*PI()*Val_Total","v":6.2831853071795862},"Circumference"]
[null,null,null,null,null,null,null,null,null,null,60,"Deg/Radians",{"$f":"Val_Total/57.2957","v":1.7453316741046887E-2},"Radians"]
[null,null,null,null,null,null,null,null,null,null,61,"Radians/Deg",{"$f":"Val_Total*57.2957","v":57.295699999999997},"Degrees"]
[null,null,null,null,null,null,null,null,null,null,62,"PI * Number",{"$f":"Val_Total*PI()","v":3.1415926535897931},"Number Result"]
[null,null,null,null,null,null,null,null,null,null,63,"1/X",{"$f":"1/Val_Total","v":1},"Decimal"]
[null,null,null,null,null,null,null,null,null,null,64,"Peek/RMS",{"$f":"Val_Total*0.707","v":0.70699999999999996},"Rms Value"]
[null,null,null,null,null,null,null,null,null,null,65,"Spare",{"$f":"Val_Total","v":1},"None"]
[null,null,null,null,null,null,null,null,null,null,66,"Spare",1,"None"]
[null,null,null,null,null,null,null,null,null,null,67,"Spare",1,"None"]
[null,null,null,null,null,null,null,null,null,null,68,"Spare",1,"None"]
[null,null,null,null,null,null,null,null,null,null,69,"Spare",1,"None"]
[null,null,null,null,null,null,null,null,null,null,70,"Spare",1,"None"]
[null,null,null,null,null,null,null,null,null,null,71,"Spare",1,"None"]
[null,null,null,null,null,null,null,null,null,null,72,"Spare",1,"None"]
[null,null,null,null,null,null,null,null,null,null,73,"Spare",1,"None"]
[null,null,null,null,null,null,null,null,null,null,74,"Spare",1,"None"]
[null,null,null,null,null,null,null,null,null,null,75,"Spare",1,"None"]
[null,null,null,null,null,null,null,null,null,null,76,"Spare",1,"None"]
[null,null,null,null,null,null,null,null,null,null,77,"Spare",1,"None"]
[null,null,null,null,null,null,null,null,null,null,78,"Spare",1,"None"]
[null,null,null,null,null,null,null,null,null,null,79,"Spare",1,"None"]
[null,null,null,null,null,null,null,null,null,null,80,"Spare",1,"None"]
[null,null,null,null,null,null,null,null,null,null,81,"Spare",1,"None"]
[null,null,null,null,null,null,null,null,null,null,82,"Spare",1,"None"]
[null,null,null,null,null,null,null,null,null,null,83,"Spare",1,"None"]
[null,null,null,null,null,null,null,null,null,null,84,"Spare",1,"None"]
[null,null,null,null,null,null,null,null,null,null,85,"Spare",1,"None"]
[null,null,null,null,null,null,null,null,null,null,86,"Spare",1,"None"]
[null,null,null,null,null,null,null,null,null,null,87,"Spare",1,"None"]
[null,null,null,null,null,null,null,null,null,null,88,"Spare",1,"None"]
[null,null,null,null,null,null,null,null,null,null,89,"Spare",1,"None"]
[null,null,null,null,null,null,null,null,null,null,90,"Spare",1,"None"]
[null,null,null,null,null,null,null,null,null,null,91,"Spare",1,"None"]
[null,null,null,null,null,null,null,null,null,null,92]
[null,null,null,null,null,null,null,null,null,null,93]
[null,null,null,null,null,null,null,null,null,null,94]
[null,null,null,null,null,null,null,null,null,null,95]
[null,null,null,null,null,null,null,null,null,null,96]
[null,null,null,null,null,null,null,null,null,null,97]
[null,null,null,null,null,null,null,null,null,null,98]
[null,null,null,null,null,null,null,null,null,null,99]
[null,null,null,null,null,null,null,null,null,null,100]

{"sheet":"Table","index":1,"n_rows":54,"n_cols":3,"rows_kept":54,"cut":false,"hidden":true,"merged":[]}
["British Pound","1.00 GBP","inv. 1.00 GBP"]
["Argentine Peso",82.681109000000006,1.2095E-2]
["Australian Dollar",1.924399,0.51964299999999997]
["Bahraini Dinar",0.46337,2.1581039999999998]
["Botswana Pula",14.914621,6.7047999999999996E-2]
["Brazilian Real",7.0438809999999998,0.14196700000000001]
["Bruneian Dollar",1.751808,0.57083899999999999]
["Bulgarian Lev",2.2325550000000001,0.44791700000000001]
["Canadian Dollar",1.743655,0.57350800000000002]
["Chilean Peso",1039.0668270000001,9.6199999999999996E-4]
["Chinese Yuan Renminbi",8.7548440000000003,0.114222]
["Colombian Peso",4881.6165979999996,2.05E-4]
["Croatian Kuna",8.6411099999999994,0.115726]
["Czech Koruna",30.947524999999999,3.2313000000000001E-2]
["Danish Krone",8.5158760000000004,0.117428]
["Euro",1.1414869999999999,0.87605]
["Hong Kong Dollar",9.553248,0.10467600000000001]
["Hungarian Forint",400.33657899999997,2.4979999999999998E-3]
["Icelandic Krona",181.61029600000001,5.5059999999999996E-3]
["Indian Rupee",94.019919999999999,1.0636E-2]
["Indonesian Rupiah",18575.755911,5.3999999999999998E-5]
["Iranian Rial",51843.776952,1.9000000000000001E-5]
["Israeli Shekel",4.3316670000000004,0.23085800000000001]
["Japanese Yen",130.92761899999999,7.6379999999999998E-3]
["Kazakhstani Tenge",519.34851800000001,1.9250000000000001E-3]
["South Korean Won",1512.9911770000001,6.6100000000000002E-4]
["Kuwaiti Dinar",0.381106,2.623942]
["Libyan Dinar",1.738729,0.57513300000000001]
["Malaysian Ringgit",5.3291659999999998,0.18764700000000001]
["Mauritian Rupee",49.144914,2.0348000000000002E-2]
["Mexican Peso",30.092510000000001,3.3230999999999997E-2]
["Nepalese Rupee",151.137021,6.6169999999999996E-3]
["New Zealand Dollar",2.0468769999999998,0.48854900000000001]
["Norwegian Krone",12.661619,7.8978999999999994E-2]
["Omani Rial",0.47384500000000002,2.1103960000000002]
["Pakistani Rupee",195.97898900000001,5.1029999999999999E-3]
["Philippine Peso",62.385995999999999,1.6029000000000002E-2]
["Polish Zloty",5.1935419999999999,0.192547]
["Qatari Riyal",4.4858130000000003,0.22292500000000001]
["Romanian New Leu",5.507377,0.18157499999999999]
["Russian Ruble",91.765773999999993,1.0897E-2]
["Saudi Arabian Riyal",4.6213730000000002,0.216386]
["Singapore Dollar",1.751808,0.57083899999999999]
["South African Rand",23.128865999999999,4.3235999999999997E-2]
["Sri Lankan Rupee",230.418949,4.3400000000000001E-3]
["Swedish Krona",12.135903000000001,8.2400000000000001E-2]
["Swiss Franc",1.202132,0.83185500000000001]
["Taiwan New Dollar",36.990887000000001,2.7033999999999999E-2]
["Thai Baht",39.960312999999999,2.5024999999999999E-2]
["Trinidadian Dollar",8.2950800000000005,0.12055299999999999]
["Turkish Lira",8.8802470000000007,0.112609]
["Emirati Dirham",4.5258649999999996,0.22095200000000001]
["US Dollar",1.2323660000000001,0.81144700000000003]
["Venezuelan Bolivar",12.308256999999999,8.1245999999999999E-2]